[Event "57th Biel Festival MTO 2024"]
[White "Schnell,Simon"]
[Black "Assaubayeva,Bibisara"]
[Site "Biel"]
[Round "1.18"]
[Annotator "TA"]
[Result "1/2-1/2"]
[Date "2024.07.15"]
[WhiteElo "2139"]
[BlackElo "2472"]
[PlyCount "72"]
[TimeControl "60"]

{[%evp 22,72,22,0,64,41,45,35,29,25,35,0,0,0,0,0,45,0,46,25,41,27,12,0,0,-3,0,3,19,18,17,0,0,-72,-6,-14,14,0,29,15,62,25,59,31,89,48,89,55,195,193,171,138,200]} 1. d4 {[%emt 0:0:4]} Nf6 {[%emt 0:0:10]} 2. c4 {[%emt 0:0:5]} g6 {[%emt 0:0:15]} 3. Nc3 {[%emt 0:0:59]} Bg7 {[%emt 0:0:12]} 4. e4 {[%emt 0:0:4]} d6 {[%emt 0:0:7]} 5. Be2 {[%emt 0:0:5]} O-O {[%emt 0:0:10]} 6. Nf3 {[%emt 0:0:34]} Na6 {[%emt 0:1:19]} 7. O-O {[%emt 0:0:12]} e5 {[%emt 0:0:13]} 8. d5 {[%emt 0:0:5]} Nc5 {[%emt 0:1:30]} 9. Qc2 {[%emt 0:0:9]} a5 {[%emt 0:0:43]} 10. Bg5 {[%emt 0:0:12]} h6 {[%emt 0:1:16]} 11. Be3 {[%emt 0:0:5]} b6 {[%emt 0:3:10]} 12. Nd2 {[%emt 0:0:58]} Nfd7 {[%emt 0:6:45]} (12... Ng4 $11 )13. b3 {[%emt 0:4:48]} f5 {[%emt 0:1:6][%cal Bf7f5,Bf5f4][%mdl 32]} 14. f3 {[%emt 0:1:26]} f4 {[%emt 0:10:9] Weiß steht etwas besser.} 15. Bf2 {[%emt 0:0:36]} Bf6 {[%emt 0:0:10]} 16. Kh1 {[%emt 0:8:28]} Bh4 {[%emt 0:0:48]} 17. Bg1 {[%emt 0:3:2]} Nf6 {[%emt 0:1:54]} 18. Rfc1 {[%emt 0:5:36]} g5 {[%emt 0:8:0]} 19. a3 {[%emt 0:4:34]} Na6 {[%emt 0:4:45]} (19... a4 $11 {ist eher angebracht.} )20. Qb2 {[%emt 0:12:13]} g4 {[%emt 0:4:18]} 21. fxg4 {[%emt 0:12:1]} Nxg4 {[%emt 0:1:29]} 22. Bxg4 {[%emt 0:0:47]} Bxg4 {[%emt 0:0:8]} 23. Nf3 {[%emt 0:1:2]} Be7 {[%emt 0:12:15]} 24. b4 {[%emt 0:4:39]} Rf7 {[%emt 0:1:48]} 25. bxa5 {[%emt 0:9:20]} bxa5 {[%emt 0:0:28]} 26. Qc2 {[%emt 0:4:43]} Rg7 {[%emt 0:2:27]} 27. Na4 {[%emt 0:3:33]} (27. Qe2 $11 {hält das Gleichgewicht.} )h5 {[%emt 0:3:30]} (27... Bxf3 $17 28. gxf3 Qd7 )28. Rf1 $1 $11 {[%emt 0:3:20]} Kh8 {[%emt 0:7:21]} 29. c5 {[%emt 0:3:9]} Qe8 {[%emt 0:5:35]} 30. c6 {[%emt 0:4:5]} Qg6 {[%emt 0:1:8]} (30... h4 $1 $11 31. h3 Bxf3 32. Rxf3 Qh5 )31. h3 {[%emt 0:3:6]} Rag8 {[%emt 0:0:22]} 32. Ra2 $1 {[%emt 0:1:19]} (32. hxg4 $2 {geht unter.} hxg4 33. Bh2 (33. Nh2 $2 g3 $19 )Qh5 $19 (33... gxf3 34. Rxf3 Rh7 35. Rh3 $19 ))Bc8 {[%emt 0:3:12]} (32... Qh7 $14 )33. Rb2 {[%emt 0:4:13] Aktives Gegenspiel!} Qh7 {[%emt 0:2:9] [#] Droht ...Rxg2 und aus.} 34. Rf2 {[%emt 0:3:58]} h4 {[%emt 0:3:31]} ({Besser ist} 34... Bg4 $14 35. Qc4 (35. hxg4 $2 {verliert.} hxg4+ 36. Bh2 gxf3 $19 )Nc5 36. Nxc5 (36. hxg4 $2 {ist das falsche Schlagen.} hxg4+ 37. Bh2 Nxe4 $19 )dxc5 )35. Bh2 $18 {[%emt 0:6:9]} Qh5 {[%emt 0:2:37][%cal Og7g2]} 36. Qd3 {[%emt 0:1:18]} Qh7 {[%emt 0:11:18] Gewichteter Fehlerwert: Weiß=0.17 (sehr präzise) /Schwarz=0.34.  Fehler:       	Weiß=1     	Schwarz=6     Ungenau:       	Weiß=5     	Schwarz=5     OK:         	Weiß=8     	Schwarz=7     Stark:        	Weiß=2     	---} (36... Nc5 $16 37. Nxc5 dxc5 38. Nxe5 Qxe5 )1/2-1/2

[Event "57th Biel Festival MTO 2024"]
[White "Bilguun,Sumiya"]
[Black "Coles,Ruben"]
[Site "Biel"]
[Round "1.19"]
[Annotator "TA"]
[Result "1-0"]
[Date "2024.07.15"]
[WhiteElo "2466"]
[BlackElo "2141"]
[PlyCount "121"]
[TimeControl "60"]

{[%evp 38,121,117,114,145,138,146,133,212,213,265,272,327,342,337,335,345,339,333,344,337,335,356,220,227,0,345,327,384,303,323,282,296,271,412,281,334,0,279,0,305,305,442,451,467,460,439,463,458,418,445,411,525,508,492,455,479,479,427,410,823,445,579,606,591,533,872,581,1636,1548,5206,4456,4134,498,29971,29972,29971,29972,29972,29981,29981,29982,29989,29990,29990,29991]} 1. e4 {[%emt 0:0:4]} e6 {[%emt 0:0:4]} 2. Qe2 {[%emt 0:2:39]} c5 {[%emt 0:0:5]} 3. Nf3 {[%emt 0:0:10]} Nc6 {[%emt 0:0:7]} 4. d3 {[%emt 0:0:27]} g6 {[%emt 0:1:25]} 5. g3 {[%emt 0:4:40]} Bg7 {[%emt 0:0:16]} 6. Bg2 {[%emt 0:0:10]} Nge7 {[%emt 0:0:25] C00: French: Unusual White 2nd moves.} 7. h4 {[%emt 0:0:24]} h6 {[%emt 0:3:25]} 8. O-O {[%emt 0:2:21]} O-O {[%emt 0:2:5]} 9. c3 {[%emt 0:0:21]} e5 {[%emt 0:2:33]} 10. a3 {[%emt 0:19:25]} a5 $146 {[%emt 0:7:40]} ({Predecessor:} 10... d6 11. b4 Bg4 12. b5 Na5 13. Nbd2 Qd7 14. a4 f5 15. exf5 gxf5 16. Bb2 c4 17. dxc4 {0-1 Mickiewicz,P (2371)-Plischki,S (2343) Marianske Lazne IM-A 11th 2012 (6)} )11. a4 {[%emt 0:7:56]} d5 {[%emt 0:1:31]} 12. Na3 {[%emt 0:2:37]} Be6 {[%emt 0:7:44]} 13. exd5 {[%emt 0:2:43]} Bxd5 {[%emt 0:0:19]} 14. Nc4 {[%emt 0:0:46]} Bxc4 {[%emt 0:1:39]} 15. dxc4 {[%emt 0:0:15]} Nf5 {[%emt 0:0:39]} 16. Nh2 {[%emt 0:2:13]} Qe7 {[%emt 0:4:50]} 17. Ng4 {[%emt 0:4:24]} h5 {[%emt 0:8:25]} 18. Ne3 {[%emt 0:2:27]} Nxe3 {[%emt 0:0:21]} 19. Bxe3 {[%emt 0:2:8]} e4 {[%emt 0:2:14]} 20. Bf4 {[%emt 0:4:21]} f5 {[%emt 0:6:19]} 21. f3 {[%emt 0:0:38]} Rae8 {[%emt 0:1:56]} 22. fxe4 {[%emt 0:7:15]} fxe4 {[%emt 0:0:21]} (22... Be5 $16 23. Rad1 Bxf4 24. Rxf4 Nd8 )23. Rae1 $18 {[%emt 0:2:24]} Be5 {[%emt 0:13:51]} 24. Qxe4 {[%emt 0:1:36]} Qg7 {[%emt 0:2:20]} 25. Qd5+ {[%emt 0:6:50]} Kh7 {[%emt 0:1:0]} 26. Qxc5 {[%emt 0:2:37]} Bxf4 {[%emt 0:2:12]} 27. Rxe8 {[%emt 0:0:38]} (27. gxf4 Rxe1 28. Rxe1 Rxf4 $16 )Rxe8 {[%emt 0:0:12]} 28. Rxf4 {[%emt 0:13:54]} (28. gxf4 Re2 29. Qg5 Qe7 30. Qxe7+ Nxe7 $18 )Re1+ {[%emt 0:2:36]} 29. Rf1 {[%emt 0:1:39]} Re2 {[%emt 0:0:42]} 30. Rf2 {[%emt 0:0:55]} Re1+ {[%emt 0:0:53] [#]} 31. Rf1 {[%emt 0:0:29]} (31. Bf1 $142 $1 )Re2 $18 {[%emt 0:2:19]} 32. Bxc6 {[%emt 0:0:8]} Qc7 {[%emt 0:0:50]} 33. Rf4 {[%emt 0:7:20]} bxc6 {[%emt 0:3:51]} 34. Qf8 {[%emt 0:0:23]} Qa7+ {[%emt 0:1:6]} 35. c5 {[%emt 0:2:23]} Re7 {[%emt 0:0:9]} (35... Re1+ $142 36. Kg2 Re2+ 37. Kf1 Re7 )36. Kh2 {[%emt 0:1:8]} Re2+ {[%emt 0:3:33]} 37. Kg1 $2 {[%emt 0:0:26]} (37. Rf2 Rxf2+ 38. Qxf2 Kg7 $16 )({White should play} 37. Kh1 $18 Re1+ 38. Kh2 Re2+ 39. Rf2 )Re1+ $2 {[%emt 0:1:29][%mdl 8192]} (37... Re7 $1 $11 )38. Kh2 {[%emt 0:0:19]} Re2+ $1 {[%emt 0:0:47]} 39. Rf2 {[%emt 0:0:6]} Qa6 {[%emt 0:1:10]} (39... Rxf2+ $142 40. Qxf2 Qb8 )40. Qf7+ $18 {[%emt 0:0:41]} Kh8 {[%emt 0:1:21]} 41. Qf3 {[%emt 0:51:36]} Rxf2+ {[%emt 0:50:50]} 42. Qxf2 {[%emt 0:0:6]} Kg8 {[%emt 0:0:51]} 43. Qe1 {[%emt 0:0:0]} Kf7 {[%emt 0:0:0]} 44. Qe4 {[%emt 0:0:0]} Qb7 {[%emt 0:0:0]} 45. Qc4+ {[%emt 0:0:0]} Kg7 {[%emt 0:0:0]} 46. Qd4+ {[%emt 0:0:0]} Kh7 {[%emt 0:0:0]} 47. b4 {[%emt 0:0:0]} Qe7 {[%emt 0:0:0]} 48. Qd2 {[%emt 0:0:0]} ({Don't play} 48. bxa5 Qe2+ 49. Kg1 Qe1+ 50. Kg2 Qe2+ 51. Qf2 Qc4 $18 )Qe4 {[%emt 0:0:0]} (48... Qb7 $142 49. bxa5 Qa6 50. Qd7+ Kh8 )49. Qg2 {[%emt 0:0:0]} Qc4 {[%emt 0:0:0]} 50. Qxc6 {[%emt 0:0:0]} ({Inferior is} 50. bxa5 Qxa4 51. g4 hxg4 $11 )Qxc3 {[%emt 0:0:0]} 51. bxa5 {[%emt 0:0:0]} (51. Qc7+ Kh6 $11 )Qc2+ {[%emt 0:0:0]} 52. Qg2 {[%emt 0:0:0]} Qxc5 {[%emt 0:0:0]} 53. a6 {[%emt 0:0:0]} Kh6 {[%emt 0:0:0]} 54. Qb2 {[%emt 0:0:0]} Kh7 {[%emt 0:0:0]} 55. Qb7+ {[%emt 0:0:0]} (55. a5 $142 {White wants to mate with Qb7+.} Qxa5 56. Qb7+ Kh6 57. a7 Qa2+ 58. Kg1 Qa1+ 59. Kg2 Qa2+ 60. Kf3 Qa3+ 61. Ke4 Qa4+ 62. Kd5 Qa5+ 63. Kd6 Qd8+ 64. Ke6 Qg8+ 65. Ke5 )Kh6 {[%emt 0:0:0]} (55... Kh8 $18 56. a7 Qf2+ 57. Kh3 Qf5+ 58. Kg2 Qc2+ 59. Kh1 Qd1+ 60. Kh2 Qe2+ 61. Qg2 Qxg2+ 62. Kxg2 Kg7 )56. a7 {[%emt 0:0:0]} Qf2+ {[%emt 0:0:0]} 57. Kh3 {[%emt 0:0:0]} Qf5+ {[%emt 0:0:0]} 58. Kg2 {[%emt 0:0:0]} Qc2+ {[%emt 0:0:0]} 59. Kh1 {[%emt 0:0:0]} Qd1+ {[%emt 0:0:0]} 60. Kh2 {[%emt 0:0:0]} Qe2+ {[%emt 0:0:0]} 61. Qg2 {[%emt 0:5:29]} 1-0

[Event "57th Biel Festival MTO 2024"]
[White "Bommini Mounika Akshaya"]
[Black "Ansat,Aldiyar"]
[Site "Biel"]
[Round "1.20"]
[Annotator "RC"]
[Result "1-0"]
[Date "2024.07.15"]
[WhiteElo "2140"]
[BlackElo "2437"]
[PlyCount "145"]
[TimeControl "60"]

1. d4 {[%emt 0:0:21]} Nf6 {[%emt 0:1:42]} 2. c4 {[%emt 0:0:11]} g6 {[%emt 0:0:38]} 3. Nc3 {[%emt 0:0:17]} d5 {[%emt 0:0:22]} 4. Nf3 {[%emt 0:0:16]} Bg7 {[%emt 0:0:12]} 5. h4 {[%emt 0:0:17]} c6 {[%emt 0:3:49]} 6. cxd5 {[%emt 0:0:13]} cxd5 {[%emt 0:0:9]} 7. Bf4 {[%emt 0:0:4]} Nc6 {[%emt 0:2:30]} 8. e3 {[%emt 0:0:10]} O-O {[%emt 0:3:44]} 9. Ne5 {[%emt 0:0:5]} Qb6 {[%emt 0:22:44]} 10. Qd2 {[%emt 0:11:33]} Bf5 {[%emt 0:1:17]} 11. Be2 {[%emt 0:11:6]} Rfc8 {[%emt 0:7:19]} 12. f3 {[%emt 0:4:35]} h5 {[%emt 0:22:33]} 13. O-O {[%emt 0:6:40]} Qd8 {[%emt 0:1:40]} 14. Rad1 {[%emt 0:9:5]} a6 {[%emt 0:3:47]} 15. Qe1 {[%emt 0:14:58]} b5 {[%emt 0:3:24]} 16. e4 {[%emt 0:14:54]} Be6 {[%emt 0:2:27]} 17. Nxc6 {[%emt 0:5:10]} Rxc6 {[%emt 0:0:39]} 18. e5 {[%emt 0:0:8]} Nd7 {[%emt 0:0:9]} 19. Bd3 {[%emt 0:0:35]} Nb6 {[%emt 0:2:17]} 20. Ne2 {[%emt 0:8:31]} Qd7 {[%emt 0:2:25]} 21. Ng3 {[%emt 0:2:43]} Na4 {[%emt 0:5:45]} 22. Qd2 {[%emt 0:1:45]} Qe8 {[%emt 0:2:20]} 23. Rc1 {[%emt 0:5:41]} Rac8 {[%emt 0:1:10]} 24. Rxc6 {[%emt 0:1:41]} Rxc6 {[%emt 0:0:22]} 25. Rc1 {[%emt 0:0:58]} Rxc1+ {[%emt 0:6:14]} 26. Qxc1 {[%emt 0:0:7]} Qc8 {[%emt 0:2:0]} 27. Qd2 {[%emt 0:1:58]} Bd7 {[%emt 0:1:55]} 28. Kh2 {[%emt 0:9:40]} Be8 {[%emt 0:6:39]} 29. Bh6 {[%emt 0:0:36]} f6 {[%emt 0:0:4]} 30. Bxg7 {[%emt 0:0:37]} Kxg7 {[%emt 0:0:1]} 31. Ne2 {[%emt 0:0:24]} Bf7 {[%emt 0:4:22]} 32. b3 {[%emt 0:0:33]} Nb6 {[%emt 0:0:0]} 33. Nf4 {[%emt 0:0:31]} Qb8 {[%emt 0:1:44]} 34. Qe3 {[%emt 0:0:27]} Nd7 {[%emt 0:0:35]} 35. e6 {[%emt 0:0:33]} Bxe6 {[%emt 0:0:23]} 36. g3 {[%emt 0:0:17]} Bf7 {[%emt 0:0:30]} 37. Qxe7 {[%emt 0:0:19]} Qe8 {[%emt 0:0:32]} 38. Qxe8 {[%emt 0:0:42]} Bxe8 {[%emt 0:0:1]} 39. Nxd5 {[%emt 0:0:16]} Bf7 {[%emt 0:0:8]} 40. Nc7 {[%emt 0:0:53]} Nb8 {[%emt 0:0:1]} 41. d5 {[%emt 0:12:42]} f5 {[%emt 0:21:56]} 42. d6 {[%emt 0:7:26]} Kf6 {[%emt 0:0:26]} 43. f4 {[%emt 0:3:6]} Be6 {[%emt 0:0:17]} 44. Kg2 {[%emt 0:0:58]} Bc8 {[%emt 0:1:56]} 45. Kf2 {[%emt 0:2:6]} Nc6 {[%emt 0:0:38]} 46. Ke3 {[%emt 0:3:55]} Kf7 {[%emt 0:0:33]} 47. a3 {[%emt 0:6:37]} Na5 {[%emt 0:1:56]} 48. a4 {[%emt 0:8:4]} Nxb3 {[%emt 0:3:35]} 49. axb5 {[%emt 0:0:36]} axb5 {[%emt 0:0:5]} 50. Bxb5 {[%emt 0:0:32]} Nc5 {[%emt 0:0:11]} 51. Be8+ {[%emt 0:4:37]} Kg7 {[%emt 0:1:42]} 52. Kd4 {[%emt 0:2:7]} Ne4 {[%emt 0:0:6]} 53. Ke5 {[%emt 0:2:2]} Nxg3 {[%emt 0:0:43]} 54. Ne6+ {[%emt 0:0:33]} Kh6 {[%emt 0:3:11]} 55. d7 {[%emt 0:1:14]} Bxd7 {[%emt 0:0:5]} 56. Bxd7 {[%emt 0:0:4]} Nf1 {[%emt 0:5:11]} 57. Ng5 {[%emt 0:0:55]} Kg7 {[%emt 0:0:11]} 58. Bc6 {[%emt 0:0:46]} Ne3 {[%emt 0:0:34]} 59. Kd4 {[%emt 0:0:47]} Ng4 {[%emt 0:0:45]} 60. Bf3 {[%emt 0:0:28]} Nf6 {[%emt 0:0:10]} 61. Ke5 {[%emt 0:15:33]} Nd7+ {[%emt 0:15:6]} 62. Kd6 {[%emt 0:0:20]} Nb6 {[%emt 0:0:11]} 63. Ke7 {[%emt 0:0:32]} Nc8+ {[%emt 0:0:3]} 64. Ke6 {[%emt 0:0:0]} Nb6 {[%emt 0:0:0]} 65. Be2 {[%emt 0:0:0]} Na4 {[%emt 0:0:0]} 66. Ke7 {[%emt 0:0:0]} Nc3 {[%emt 0:0:0]} 67. Bf3 {[%emt 0:0:0]} Nb1 {[%emt 0:0:0]} 68. Ne6+ {[%emt 0:0:0]} Kh6 {[%emt 0:0:0]} 69. Kf7 {[%emt 0:0:0]} Nd2 {[%emt 0:0:0]} 70. Bg2 {[%emt 0:0:0]} Nc4 {[%emt 0:0:0]} 71. Nf8 {[%emt 0:0:0]} Nd6+ {[%emt 0:0:0]} 72. Kf6 {[%emt 0:0:0]} Ne8+ {[%emt 0:0:0]} 73. Ke7 {[%emt 0:0:0]} 1-0

[Event "57th Biel Festival MTO 2024"]
[White "Deuer,Marius"]
[Black "Woong,Zhi Wei William"]
[Site "Biel"]
[Round "1.21"]
[Annotator "TA"]
[Result "1-0"]
[Date "2024.07.15"]
[WhiteElo "2435"]
[BlackElo "2139"]
[PlyCount "109"]
[TimeControl "60"]

{[%evp 13,109,1,11,14,28,26,31,24,36,23,32,-31,54,10,37,43,54,10,10,8,64,64,57,53,59,52,60,56,66,52,74,47,49,42,34,26,125,104,145,134,183,172,225,225,259,247,252,255,231,253,252,246,279,271,285,286,298,312,299,287,354,310,303,279,354,347,408,392,416,429,411,416,506,512,577,521,533,455,476,464,583,588,613,575,715,600,577,578,1320,1302,1066,1043,1022,1016,983,967,902,866]} 1. d4 {[%emt 0:0:3]} d5 {[%emt 0:0:8]} 2. c4 {[%emt 0:0:4]} e6 {[%emt 0:0:5]} 3. Nc3 {[%emt 0:0:4]} Be7 {[%emt 0:0:15]} 4. cxd5 {[%emt 0:0:22]} exd5 {[%emt 0:0:5]} 5. Bf4 {[%emt 0:0:5]} c6 {[%emt 0:0:36]} 6. e3 {[%emt 0:0:8]} Bf5 {[%emt 0:2:27]} 7. Nge2 {[%emt 0:0:18]} Nf6 {[%emt 0:3:52]} 8. Ng3 {[%emt 0:0:55]} Be6 {[%emt 0:5:16]} 9. Bd3 {[%emt 0:3:35]} O-O {[%emt 0:8:24]} 10. O-O {[%emt 0:5:5] White is slightly better.} Re8 {[%emt 0:7:45]} 11. h3 {[%emt 0:14:19]} Nbd7 {[%emt 0:5:48]} 12. Be5 {[%emt 0:17:0]} (12. Rc1 $14 )Nb6 {[%emt 0:21:2]} (12... Nxe5 $15 13. dxe5 Nd7 )13. Nge2 {[%emt 0:15:48]} Nc8 {[%emt 0:13:24]} 14. Qc2 {[%emt 0:4:53]} h6 {[%emt 0:2:2]} 15. Bh2 {[%emt 0:4:32]} Bd6 {[%emt 0:7:7]} 16. Nf4 {[%emt 0:0:59]} Bb8 {[%emt 0:10:7]} ({Better is} 16... Bd7 $11 )17. f3 $14 {[%emt 0:2:18]} Nb6 {[%emt 0:13:38]} 18. Qf2 {[%emt 0:5:20]} Qd7 {[%emt 0:2:18]} 19. g4 {[%emt 0:6:26] Prevents Bf5.} Bd6 {[%emt 0:2:25]} 20. Rad1 {[%emt 0:1:35]} Rad8 {[%emt 0:0:21]} 21. Kh1 {[%emt 0:1:37]} Qc7 {[%emt 0:1:8]} 22. Qh4 {[%emt 0:3:1] And now g5 would win.} Qe7 {[%emt 0:1:46]} 23. Rg1 {[%emt 0:2:18]} Nh7 {[%emt 0:0:56]} 24. Qf2 {[%emt 0:0:10]} (24. Qxe7 {simplifies} Rxe7 25. Nxe6 Rxe6 26. Bxd6 Rdxd6 27. Rge1 )c5 {[%emt 0:0:37] White stays focused until the end.} (24... Ng5 $11 {keeps the balance.} )25. Nb5 {[%emt 0:0:57] [#] aiming for Nxd6. White is much more active.} Bxf4 {[%emt 0:0:55]} 26. Bxf4 {[%emt 0:5:23] Black must now prevent dxc5.} c4 {[%emt 0:0:25]} (26... Ng5 $16 )27. Bb1 $18 {[%emt 0:0:18]} a6 {[%emt 0:0:31]} (27... g5 $142 )28. Nc7 {[%emt 0:2:7]} Rf8 {[%emt 0:0:30]} 29. Qc2 {[%emt 0:3:11][%csl Gb1][%cal Rc2h7] [#]} g6 {[%emt 0:0:29]} 30. Nxe6 {[%emt 0:0:19]} Qxe6 {[%emt 0:0:6]} 31. Bxh6 {[%emt 0:0:4]} Rfe8 {[%emt 0:0:14]} 32. Bf4 {[%emt 0:0:29]} Nf6 {[%emt 0:1:7]} 33. Kg2 {[%emt 0:1:40]} Rc8 {[%emt 0:0:17]} 34. Kf2 {[%emt 0:1:56]} Nbd7 {[%emt 0:0:43]} 35. h4 {[%emt 0:0:41][%cal Bh3h4,Bh4h5][%mdl 32]} Nf8 {[%emt 0:0:37]} 36. h5 {[%emt 0:1:22]} N6h7 {[%emt 0:0:11]} 37. Rde1 {[%emt 0:2:16]} g5 {[%emt 0:0:44]} 38. Be5 {[%emt 0:0:41]} f6 {[%emt 0:0:36]} 39. Bg3 {[%emt 0:0:35]} b5 {[%emt 0:0:24][%cal Bb7b5,Bb5b4,Bb4c3][%mdl 32]} 40. Qd2 {[%emt 0:2:57]} Qb6 {[%emt 0:0:31]} 41. e4 {[%emt 0:15:57]} dxe4 {[%emt 0:12:6]} 42. Rxe4 {[%emt 0:7:25]} ({Much less strong is} 42. Bxe4 Ne6 43. Bf5 Nhf8 $18 )(42. fxe4 Rcd8 43. Qe3 Qxd4 $14 )Red8 {[%emt 0:16:45]} 43. Kg2 {[%emt 0:4:2] White is clearly winning.} b4 {[%emt 0:4:25]} 44. Rd1 {[%emt 0:2:32]} c3 {[%emt 0:8:53]} 45. bxc3 {[%emt 0:1:31]} bxc3 {[%emt 0:0:16]} 46. Qe2 {[%emt 0:0:10]} Qc6 {[%emt 0:7:48]} 47. Bc2 {[%emt 0:1:30]} Kh8 {[%emt 0:0:9]} 48. Re7 {[%emt 0:1:38]} Re8 {[%emt 0:2:28]} 49. d5 {[%emt 0:3:42]} Rxe7 {[%emt 0:0:21]} 50. Qxe7 {[%emt 0:0:6]} Qb5 {[%emt 0:0:15] Black is weak on the light squares} 51. h6 {[%emt 0:0:46][%csl Gh6][%cal Re7g7]} Qd7 {[%emt 0:0:12]} 52. Qxd7 {[%emt 0:1:15]} Nxd7 {[%emt 0:0:5]} 53. Bf5 {[%emt 0:0:5]} Nhf8 {[%emt 0:0:18]} 54. Bd6 {[%emt 0:0:5] Hoping for Bxf8. This pair of bishops is nice.} Rd8 {[%emt 0:1:7]} 55. Rc1 {[%emt 0:0:59] Weighted Error Value: White=0.17 (very precise) /Black=0.31.  Mistake:       	White=1     	Black=5      Inaccurate:     	White=3     	Black=2      OK:         	White=21    	Black=8      Best:        	---       	Black=2} 1-0

[Event "57th Biel Festival MTO 2024"]
[White "Nurgaliyeva,Zarina"]
[Black "Materia,Marco"]
[Site "Biel"]
[Round "1.22"]
[Annotator "TA"]
[Result "0-1"]
[Date "2024.07.15"]
[WhiteElo "2145"]
[BlackElo "2453"]
[PlyCount "80"]
[TimeControl "60"]

{[%evp 13,80,33,20,33,27,27,22,16,3,0,11,9,6,0,19,10,10,13,74,1,12,0,0,-56,-54,-47,-45,-56,-45,-55,-52,-56,-39,-63,-56,-71,-72,-66,-30,-45,-35,-44,-28,-29,-29,-29,-27,-23,-37,-66,-64,-112,-93,-108,-101,-222,-214,-393,-364,-285,-180,-241,-223,-924,-910,-1167,-1019,-1115,-834]} 1. e4 {[%emt 0:0:6]} c5 {[%emt 0:0:5]} 2. Nf3 {[%emt 0:0:13]} e6 {[%emt 0:0:6]} 3. c3 {[%emt 0:0:19]} d5 {[%emt 0:0:8]} 4. exd5 {[%emt 0:0:14]} Qxd5 {[%emt 0:0:7]} 5. d4 {[%emt 0:0:26]} Nf6 {[%emt 0:0:6]} 6. Na3 {[%emt 0:1:6]} a6 {[%emt 0:1:38]} 7. Nc4 {[%emt 0:4:28]} Nbd7 {[%emt 0:0:5]} 8. a4 {[%emt 0:13:16]} cxd4 {[%emt 0:0:56]} 9. Qxd4 {[%emt 0:6:20]} Bc5 {[%emt 0:0:5]} 10. Qxd5 {[%emt 0:0:47] The position is equal.} (10. Qh4 {feels hotter.} O-O 11. Be2 b5 12. Ne3 )Nxd5 {[%emt 0:1:49]} 11. Be2 {[%emt 0:2:9]} O-O {[%emt 0:6:39]} 12. O-O {[%emt 0:2:29]} b6 {[%emt 0:14:33]} 13. Nfe5 {[%emt 0:6:45]} Ra7 {[%emt 0:17:24]} 14. Bf3 {[%emt 0:3:58]} a5 {[%emt 0:25:35]} 15. Rd1 {[%emt 0:15:49]} N7f6 {[%emt 0:6:56]} (15... Ba6 $11 {keeps the balance.} )16. g4 {[%emt 0:9:42]} (16. Na3 $16 )Ba6 {[%emt 0:14:9]} 17. Na3 {[%emt 0:16:26] And now Nb5 would win.} Nd7 {[%emt 0:1:48]} 18. Nc6 {[%emt 0:10:1]} (18. Bf4 $11 )Rc7 $15 {[%emt 0:0:13]} 19. Bxd5 {[%emt 0:0:40]} exd5 {[%emt 0:0:4]} 20. Nd4 {[%emt 0:0:7]} Ne5 $1 {[%emt 0:3:12][%cal Oc5d4] Threatens to win with ...Bxd4!} 21. Bf4 {[%emt 0:3:11]} Re7 {[%emt 0:0:15]} 22. Bxe5 {[%emt 0:1:20]} Rxe5 {[%emt 0:0:2]} 23. Nac2 {[%emt 0:0:16]} h5 {[%emt 0:7:34] Black is more active.} 24. h3 {[%emt 0:1:34]} hxg4 {[%emt 0:0:58]} 25. hxg4 {[%emt 0:0:2]} Be2 {[%emt 0:3:9]} 26. Re1 {[%emt 0:3:16]} Rfe8 $1 {[%emt 0:0:1]} ({Of course not} 26... Bxd4 $6 27. Nxd4 Rfe8 28. f3 $14 )27. b4 {[%emt 0:3:26] [#] Hoping for Nxe2.} Bxd4 {[%emt 0:0:58]} 28. Nxd4 {[%emt 0:0:11]} Bxg4 {[%emt 0:0:14]} 29. Rxe5 {[%emt 0:0:59]} Rxe5 {[%emt 0:0:2]} 30. bxa5 {[%emt 0:0:9]} bxa5 {[%emt 0:0:1][%mdl 4096] Endgame. KRB-KRN} 31. Nc6 {[%emt 0:3:14]} Rh5 {[%emt 0:5:29] [#] ( -> ...Bf3)} 32. f4 {[%emt 0:2:46]} (32. Kg2 $15 )Rh3 {[%emt 0:1:3]} 33. Ra3 {[%emt 0:0:34][%cal Og1g2]} Kh7 {[%emt 0:0:52]} 34. Nxa5 {[%emt 0:0:37] This move loses the game for White.} (34. Nd4 $17 )d4 $19 {[%emt 0:0:4]} 35. Ra1 $2 {[%emt 0:0:30]} (35. Nc6 dxc3 (35... Rxc3 $2 36. Rxc3 dxc3 37. Nb4 $19 )36. Nb4 )Rxc3 {[%emt 0:0:20]} 36. Kf2 {[%emt 0:0:31]} Rf3+ {[%emt 0:0:43]} 37. Kg2 {[%emt 0:0:24]} (37. Ke1 $142 )d3 {[%emt 0:0:48]} 38. Nc6 $2 {[%emt 0:0:37]} (38. Nb3 )d2 {[%emt 0:0:32] Black is clearly winning.} 39. Ne5 {[%emt 0:0:28]} Rxf4 {[%emt 0:0:27]} 40. Kg3 {[%emt 0:0:14]} Rd4 {[%emt 0:0:24] Weighted Error Value: White=0.55/Black=0.11 (very precise) .  Mistake:       	White=7     	Black=1      Inaccurate:     	White=1     	Black=2      OK:         	White=8     	Black=9      Best:        	White=2     	Black=5      Strong:       	---       	Black=2} 0-1